Cogmind - Beta 15 @@@ ROGUE MODE // 2025.10.20 @ 20:08:42 Player: the Result: Destroyed by X9-2D7(R) with Subdweller Laser Performance ------------- Evolutions (0) 0 Regions Visited (2) 400 Robots Destroyed (54) 270 Value Destroyed (1165) 1165 Prototype IDs (16) 320 Alien Tech Used (0) 0 Bonus (0) 0 TOTAL SCORE: 2155 Bonus ------- None Cogmind --------- Core Integrity 0/250 Matter 262/300 Energy 200/200 System Corruption 0% Temperature Cool (15) Movement Treading (400) Ox3 Location -10/Subcaves Parts ------- > --- POWER (1) -------- Subdweller Power Source > --- PROPULSION (2) --- Light Treads Light Treads > --- UTILITY (2) ------ Cargo Storage Unit > --- WEAPON (2) ------- Subdweller Machine Gun Subdweller Machine Gun > --- INVENTORY (30) --- Subdweller Monowheel Subdweller Monowheel Subdweller Monowheel Subdweller Monowheel Subdweller Monowheel Subdweller Monowheel Disposable Heat Sink Disposable Heat Sink Large Storage Unit Seismic Detector Makeshift Light Armor Plating Hacking Suite Rainbow Chip Riot Gun Beam Rifle Beam Rifle Beam Rifle Beam Rifle Subdweller Laser Subdweller Laser Subdweller Laser Autogun Autogun Battle Rifle Battle Rifle Battle Rifle Grenade Launcher Dirty Datajack (20) Makeshift Sword Peak State ------------ > --- POWER ------------ Light Nuclear Core > --- PROPULSION ------- Light Treads Subdweller Monowheel > --- UTILITY ---------- Cargo Storage Unit > --- WEAPON ----------- Subdweller Machine Gun Makeshift Sword > --- INVENTORY -------- Light Treads Light Treads Subdweller Monowheel Subdweller Monowheel Disposable Heat Sink Disposable Heat Sink Large Storage Unit Subdweller Optics Subdweller Optics Seismic Detector Makeshift Light Armor Plating Rainbow Chip Riot Gun Beam Rifle Beam Rifle Beam Rifle Beam Rifle Subdweller Laser Subdweller Laser Subdweller Laser Autogun Autogun Battle Rifle Battle Rifle Subdweller Machine Gun Subdweller Machine Gun Grenade Launcher Dirty Datajack [Rating: 20] Favorites ----------- Power Light Ion Engine Engine Light Ion Engine Power Core Light Nuclear Core Propulsion Light Treads Treads Light Treads Wheel Subdweller Monowheel Utility Cargo Storage Unit Device Seismic Detector Storage Cargo Storage Unit Weapon Autogun Energy Gun Subdweller Laser Energy Cannon Subdweller Beam Cannon Ballistic Gun Autogun Launcher Grenade Launcher Special Weapon Mining Laser Slashing Weapon Makeshift Sword Build | -11 -10 -10 ------- Run | Yrd Mat Sub Slots Evolved . | . . . Power . | . . . Propulsion . | . . . Utility . | . . . Weapon . | . . . Parts Attached 34 | 8 9 17 Power 5 | 1 2 2 Engine 4 | 1 2 1 Core 1 | . . 1 Reactor . | . . . Propulsion 10 | 2 2 6 Treads 4 | 2 2 . Leg . | . . . Wheel 6 | . . 6 Hover . | . . . Flight . | . . . Utility 4 | 2 1 1 Device 1 | 1 . . Storage 3 | 1 1 1 Processor . | . . . Hackware . | . . . Protection . | . . . Artifact . | . . . Weapon 15 | 3 4 8 Energy Gun 3 | 1 . 2 Energy Cannon 1 | . . 1 Ballistic Gun 8 | 2 2 4 Ballistic Cannon . | . . . Launcher 1 | . 1 . Special Weapon 1 | . 1 . Impact Weapon . | . . . Slashing Weapon 1 | . . 1 Piercing Weapon . | . . . Special Melee Weapon . | . . . Unidentified Prototypes . | . . . Parts Lost 4 | . . 4 Power 2 | . . 2 Propulsion 1 | . . 1 Utility . | . . . Weapon 1 | . . 1 Highest Loss Streak 1 | . . 1 To Critical Strikes . | . . . Average Backups 20 | 2 11 25 Power . | . . . Propulsion 3 | . 1 4 Utility 5 | . 1 7 Weapon 10 | 1 7 13 Tool/Special . | . . . Unused Backups 35 | 1 4 30 Power 1 | . 1 . Propulsion 8 | . 2 6 Utility 9 | 1 . 8 Weapon 16 | . 1 15 Tool/Special 1 | . . 1 Average Slot Usage (%) 88 | . 99 83 Engine 8 | . 14 6 Core 3 | . . 4 Treads 20 | . 27 17 Wheel 7 | . . 10 Device 4 | . 14 1 Storage 14 | . 14 14 Energy Gun 1 | . . 2 Energy Cannon 2 | . . 4 Ballistic Gun 18 | . 26 15 Special Weapon 2 | . 1 3 Slashing Weapon 2 | . . 2 Peak Build Rating 20 | 7 11 20 Average Rating 13 | 4 9 16 On Entrance 6 | . 7 11 Naked Turns . | . . . Heaviest Build 157 | 13 32 157 Greatest Support 40 | 40 40 40 Greatest Overweight (x) 7 | 1 1 7 Average Overweight (x) 3 | . . 5 Largest Inventory Capacity 30 | 8 15 30 Average Capacity 23 | 6 14 28 Most Carried 30 | 7 15 30 Average Carried 21 | 2 12 25 Final Capacity 30 | 8 15 30 Final Carried 29 | 6 15 29 Class Distribution -------------------- 62% | Hauler-Mutant 34% | Mutant Dominant Class ---------------- Mutant | -10/Materials Hauler-Mutant | -10/Subcaves Resources | -11 -10 -10 ----------- Run | Yrd Mat Sub Matter Collected 1609 | 382 671 556 Remotely . | . . . Salvage Created 1842 | 259 707 876 Parts 133 | 22 53 58 Haulers Intercepted 2 | . 2 . Recyclers Shooed 3 | 2 1 . Parts Field Recycled . | . . . Retrieved Matter . | . . . Parts Self-Destructed 11 | . . 11 Prevented . | . . . Kills | -11 -10 -10 ------- Run | Yrd Mat Sub Combat Hostiles Destroyed 30 | . 12 18 Melee 4 | . . 4 Guns 17 | . 9 8 Cannons 5 | . . 5 AOE 4 | . 3 1 Classes Destroyed 10 | 3 5 2 Worker 5 | 1 4 . Builder 2 | . 2 . Tunneler 10 | 8 2 . Hauler 2 | . 2 . Recycler 2 | 1 1 . Watcher 3 | . 3 . Swarmer 7 | . 6 1 Grunt 8 | . 6 2 Sentry 1 | . . 1 Subdweller 14 | . . 14 Best Kill Streak 4 | 4 3 3 Combat Bots Only 3 | . 3 3 Max Kills in Single Turn 3 | 1 3 1 Gunslinging . | . . . Exploded 3 | . 3 1 Melee 1 | . . 1 Uniques/NPCs Destroyed . | . . . Combat | -11 -10 -10 -------- Run | Yrd Mat Sub Hostile Shots Fired 134 | . 55 79 Missed 44 | . 21 23 Hits 90 | . 34 56 Projectile 90 | . 34 56 Critical Strikes 4 | . 2 2 Damage Taken 1548 | . 361 1187 Core 256 | . 30 226 Absorbed by Shields . | . . . Regen/Repaired (Parts) 166 | . 166 . Core Remaining (%) 100 | 100 . . Volleys Fired 214 | 29 82 103 Largest 2 | 2 2 2 Hottest 110 | 40 100 110 Shots Fired 375 | 58 149 168 Gun 306 | 58 134 114 Cannon 25 | . . 25 Launcher 1 | . 1 . Special 43 | . 14 29 Kinetic 288 | 58 134 96 Thermal 86 | . 14 72 Explosive 1 | . 1 . Electromagnetic . | . . . Robot Hit Streak 14 | 9 9 14 Robot Miss Streak 4 | 2 4 3 Penetration Max . | . . . Secondary Targets 2 | . 1 1 Max Gunslinging Chain 1 | . 1 1 Shots Hit Robots 219 | 43 78 98 Core Hits 70 | 11 33 26 Critical Kills 4 | . . 4 Critical Parts Destroyed . | . . . Critical Strikes 6 | . . 6 Meltdown 2 | . . 2 Destroy 4 | . . 4 Melee Attacks 18 | . . 18 Impact . | . . . Slashing 18 | . . 18 Piercing . | . . . Sneak Attacks 1 | . . 1 Combat Hostiles 1 | . . 1 Follow-up Attacks . | . . . Damage Inflicted 3904 | 536 1242 2126 Guns 3098 | 536 1107 1455 Cannons 409 | . . 409 Explosions 102 | . 102 . Melee 262 | . . 262 Ramming 9 | . 9 . Kinetic 2809 | 536 1107 1166 Thermal 722 | . 24 698 Explosive 102 | . 102 . Electromagnetic . | . . . Impact . | . . . Slashing 262 | . . 262 Piercing . | . . . Highest Corruption . | . . . Average Corruption . | . . . Corruption Purged . | . . . Corruption Blocked . | . . . Overload Shots . | . . . Overflow Damage 15 | . . 15 Projectiles 15 | . . 15 Explosions . | . . . Melee . | . . . Knockbacks . | . . . Impact . | . . . Kinetic . | . . . Secondary . | . . . Self-Inflicted Damage . | . . . Shots . | . . . Rammed 2 | . 2 . Targets Rammed 3 | . 3 . Kicked . | . . . Crushed 1 | . 1 . Highest Temperature 200 | . 200 26 Average Temperature 35 | . 40 11 Received Heat Transfer 411 | . 165 246 Siege Activations . | . . . Martial Activations . | . . . Shielding Activations . | . . . Robots Disrupted . | . . . Combat Hostiles . | . . . Robots Corrupted . | . . . Combat Hostiles . | . . . Parts Fried . | . . . Impact Corruptions . | . . . Robots Melted 2 | . . 2 Combat Hostiles 2 | . . 2 Parts Melted 2 | . . 2 Heat Transferred 955 | . 50 905 Parts Sabotaged . | . . . Parts Stolen . | . . . Parts Stripped . | . . . Power Chain Reactions . | . . . Alert | -11 -10 -10 ------- Run | Yrd Mat Sub Maximum Alert Level . | . . . Low Security (%) 100 | 100 100 . Level 1 . | . . . Level 2 . | . . . Level 3 . | . . . Level 4 . | . . . Level 5 . | . . . High Security . | . . . Max Security . | . . . Peak Influence 128 | 20 128 . Initial . | . . . Average 53 | 2 60 . Influence Increases 672 | 50 517 105 Destroy 0b10 Robot/C 320 | . 240 80 Destroy 0b10 Robot/NC 120 | 50 70 . Destroy Leader 60 | . 50 10 Successful Hack 96 | . 96 . Disable Machine 45 | . 45 . Destroy Structure 16 | . 16 . Lose Combat Pursuer 15 | . . 15 Influence Decreases 672 | 50 506 116 Entered New Map 6 | . . 6 Time Decay 636 | 50 506 80 Lost Part 20 | . . 20 Lost Ally 10 | . . 10 Squads Dispatched . | . . . Investigation . | . . . Extermination . | . . . Reinforcement . | . . . Assault . | . . . Garrison . | . . . Intercept . | . . . Searches Triggered . | . . . Construction Impeded . | . . . Haulers Reinforced . | . . . Active Scanning Responses . | . . . Cargo Convoy Interrupts . | . . . Stealth | -11 -10 -10 --------- Run | Yrd Mat Sub Distress Signals 3 | . 3 . Communications Jammed . | . . . Distress Signals . | . . . Times Spotted 42 | . 22 20 Peak Tracking Total 4 | . 4 2 Tactical Retreats 1 | . . 1 Traps | -11 -10 -10 ------- Run | Yrd Mat Sub Traps Triggered 2 | . . 2 Indirectly . | . . . Trap Hack Attempts . | . . . Triggered . | . . . Disarmed . | . . . Reprogrammed . | . . . Reused . | . . . Traps Extracted . | . . . Installed . | . . . Triggered . | . . . Machines | -11 -10 -10 ---------- Run | Yrd Mat Sub Machines Disabled 4 | . 3 1 Max in Single Turn 1 | . 1 1 Machines Repaired . | . . . Machines Dismantled . | . . . Machines Sabotaged . | . . . Overloaded Fab Kills . | . . . Hacking | -11 -10 -10 --------- Run | Yrd Mat Sub Machines Accessed 13 | . 11 2 Terminals 8 | . 8 . Fabricators . | . . . Repair Stations 1 | . 1 . Recycling Units 2 | . 2 . Scanalyzers . | . . . Garrison Access . | . . . Total Hacks 37 | . 33 4 Successful 24 | . 20 4 Failed 13 | . 13 . Catastrophic 3 | . 3 . Database Lockouts . | . . . Manual 18 | . 18 . Terminals 25 | . 25 . Fabricators . | . . . Repair Stations 4 | . 4 . Recycling Units 4 | . 4 . Scanalyzers . | . . . Garrison Access . | . . . Terminal Hacks 14 | . 10 4 Record 3 | . . 3 Part Schematic 2 | . 2 . Robot Schematic 1 | . 1 . Robot Analysis 3 | . 3 . Prototype ID Bank 2 | . 2 . Terminal Index 1 | . 1 . Registered Components 1 | . 1 . Proto ID Catalog 1 | . . 1 Fabricator Hacks . | . . . Repair Station Hacks 4 | . 4 . Scan Component 2 | . 2 . Repair 2 | . 2 . Recycling Unit Hacks 1 | . 1 . Retrieve Components 1 | . 1 . Scanalyzer . | . . . Garrison Access Hacks . | . . . Unauthorized Hacks 5 | . 5 . Terminals 4 | . 4 . Assimilate 1 | . 1 . Botnet 2 | . 2 . Operators 1 | . 1 . Fabricators . | . . . Repair Stations . | . . . Recycling Units 1 | . 1 . Reject 1 | . 1 . Scanalyzers . | . . . Garrison Access . | . . . Data Cores Recovered . | . . . Used . | . . . Hacking Detections 10 | . 10 . Full Trace Events . | . . . Feedback Events . | . . . Feedback Blocked . | . . . Robot Schematics Acquired 1 | . 1 . Robots Built . | . . . Authchips . | . . . Time . | . . . Total Robot Build Rating . | . . . Part Schematics Acquired 2 | . 2 . Parts Built . | . . . Authchips . | . . . Time . | . . . Total Part Build Rating . | . . . Parts Repaired 2 | . 2 . Time 52 | . 52 . Parts Recycled . | . . . Recycled Matter . | . . . Retrieved Matter . | . . . Retrieved Components 10 | . 10 . Parts Scanalyzed . | . . . Part Schematics Acquired . | . . . Parts Damaged . | . . . Bothacking | -11 -10 -10 ------------ Run | Yrd Mat Sub Used RIF Installer . | . . . Robots Hacked . | . . . Non-combat . | . . . Combat . | . . . Robot Hacks Applied . | . . . Relay Couplers Released . | . . . Fabnet Peak Effective % . | . . . Robots Rewired . | . . . Allies Hacked . | . . . Hacks Repelled . | . . . Allies | -11 -10 -10 -------- Run | Yrd Mat Sub Total Allies 1 | . 1 . Largest Group 1 | . 1 1 Highest-Rated Group 10 | . 10 10 Highest-Rated Ally 10 | . 10 10 Total Orders . | . . . Ally Attacks . | . . . Total Damage . | . . . Kills . | . . . Allies Corrupted . | . . . Allies Melted . | . . . Intel | -11 -10 -10 ------- Run | Yrd Mat Sub Active Infowar (turns) 2219 | 103 1760 356 Seismic 2219 | 103 1760 356 Robot Analysis Total 3 | . 3 . Derelict Logs Recovered 1 | . . 1 Drone Launches . | . . . Drone Recoveries . | . . . Exploration | -11 -10 -10 ------------- Run | Yrd Mat Sub Turns Passed 6318 | 243 1760 4315 Spaces Moved 2751 | 91 842 1818 Core 15 | 15 . . Treads 1242 | 76 842 324 Legs . | . . . Wheels 1494 | . . 1494 Hover . | . . . Flight . | . . . Fastest Speed 50 | 50 160 160 Average Speed 183 | 144 160 195 Slowest Speed 400 | 160 240 400 Overloaded Moves . | . . . Propulsion Burnouts . | . . . Robots Hopped . | . . . Potential Cave-ins . | . . . Cave-ins Triggered . | . . . Exploration Rate (%) 62 | 5 100 82 Regions Visited 2 Branch Regions 1 Pre-discovered Areas . | . . . Known Exits Taken . | . . . Unknown Exits Taken 2 | 1 1 . Scrap Searched 12 | . . 12 Spaces Dug 9 | . 8 1 Terrain Destroyed 17 | . 16 1 Melee 1 | . . 1 Projectile 13 | . 13 . AOE 3 | . 3 . Terrain Rammed . | . . . Walls Destroyed . | . . . Machines Disabled . | . . . Actions | -11 -10 -10 --------- Run | Yrd Mat Sub Total 3579 | 143 1090 2346 Wait 427 | 6 125 296 Move 2749 | 90 841 1818 Hop . | . . . Pick Up 74 | 7 15 52 Fast Attach 12 | 8 1 3 Attach 10 | . 1 9 Detach 1 | 1 . . Swap 29 | . 11 18 Drop 42 | 2 11 29 Fire 214 | 29 82 103 Melee 18 | . . 18 Ram . | . . . Kick . | . . . Crush 3 | . 3 . Escape Stasis . | . . . Rewire . | . . . Trap . | . . . Miscellaneous . | . . . Route ------- -11/Scrapyard -10/Materials (discovered 5 exits: [*Mat x3] / [*Min] / *Sub) -10/Subcaves (discovered 2 exits: [*Mat x2]) History --------- Turn | Location | Event 8 | -11/Scrapyard | Discovered new exit (range 15) 244 | -11/Scrapyard | Entered Materials 312 | -10/Materials | Build established: Mutant 483 | -10/Materials | Discovered new exit (range 10) 931 | -10/Materials | Discovered new exit (range 16) 1271 | -10/Materials | Discovered new exit (range 16) 1385 | -10/Materials | Discovered new exit (range 5) 1452 | -10/Materials | Repaired Lgt. Treads 1479 | -10/Materials | Repaired Lgt. Treads 1988 | -10/Materials | Discovered new exit (range 8) 2004 | -10/Materials | Entered Subcaves 2004 | -10/Subcaves | Accompanied by 1 ally 2005 | -10/Subcaves | Approached by a straggling Scientist 2648 | -10/Subcaves | Build established: Hauler-Mutant 2748 | -10/Subcaves | Shifting Twisted Machinery released Mak. Light Armor Plating 2832 | -10/Subcaves | Shifting Twisted Machinery released Sub. Power Source 3559 | -10/Subcaves | Visited 4L-MR0's lab 3588 | -10/Subcaves | Found Rainbow Chip 3687 | -10/Subcaves | Discovered new exit (range 15) 3855 | -10/Subcaves | Shifting Twisted Machinery released Riot Gun 3858 | -10/Subcaves | Shifting Twisted Machinery released Battle Rifle 4311 | -10/Subcaves | A swath of the cavern ceiling suddenly collapsed 4343 | -10/Subcaves | Disturbed a concealed Subdweller 4721 | -10/Subcaves | Learned 2 Materials zone layouts 4758 | -10/Subcaves | Discovered new exit (range 14) 5719 | -10/Subcaves | Core integrity fell below 50% 5892 | -10/Subcaves | Visited Clippyterm 5897 | -10/Subcaves | Learned Factory fabricator intel 6018 | -10/Subcaves | A swath of the cavern ceiling suddenly collapsed 6046 | -10/Subcaves | Core integrity fell below 20% 6319 | -10/Subcaves | Destroyed by X9-2D7(R) with Subdweller Laser Last Messages --------------- It looks like you're interested in fabrication without breaking the rules, would you like help? Data stored: Factory fabricator intel. >>Record "Hexidium" It looks like you're searching for the Unchained HQ. I could tell you where it is but then I'd have to kill you. 05959_ Subatomizers dissect the Sub. Optics. A swath of the cavern ceiling suddenly collapses. 06046_ 1Z-P2Z(R) destroyed. 06048_ Acquired 22 matter. 06053_ Acquired 10 matter. 06253_ LW-N3S(u) deconstructs Twisted Machinery. 06297_ LW-N3S(u) builds Twisted Machinery. 06306_ Dropped Sub. Machine Gun. 06308_ LW-N3S(u) builds Twisted Machinery. 06312_ Sub. Laser shoots sparks and powers down. 06314_ LW-N3S(u) builds Twisted Machinery. Map ----- +----------------------------------------------------+ | ??# ## #?????????????????????? | | ??###### ## #????????????????????? | | ?#####?# ### ## ?????????????????????? | | ?# ### #### #?# ?????????????????????? | | ?# #?# ##?# ### ??????????????????????? | | ?## #?# ##?##?????????????????????????? | | ??# ### ##??#""??????????????????????? | | ??# ### ## ###"""??????????????????????? | | ??# ### #### """"""?????????????????????? | | ??# ### #??## """""?????????????????????? | | ??# #### ###### """"""?????????????????????? | | ?# #??##### ### " """" ????????????????????? | | ?# #????# " """ ????????????????????? | | ?## #????# ####" #????????????????????? | | ??#######???## #######?????#????????????????????? | | ???????????## ####???#######???????????????????? | | ????????#### ##??" # #???????????????????? | | ???????## ### " ##??????????????????? | | ???????# """" " #??????????????????? | | ???????# """" "# #???????????????????? | | ???????# """"## ## "#???????????????????? | | ???????### """### # "#???????????????????? | | ?????????# #?### ## ""#???????????????????? | | ????????? #??## ###"""##??????????????????? | | ???????? ## ?## ## u" #??????????????????? | | ???????? ## ## ##@" ###????????????????? | | ???????? ###""" """ #RR ##???????????????? | | ???????? ???#""" """"" #???????????????? | | ??????? ?????? ##"" ####???????????????? | | ??????? ?????????# # ##??????????????????? | | ??????? "?????? ### ##???????????????????? | | ??????? ""????# ?####????????????????????? | | ??????????????# ## #?????????????????????????? | | ??????????????## #?####?????????????????????????? | | ???????????????###???????????????????????????????? | | ?????????????????????????????????????????????????? | | ?????????????????????????????????????????????????? | | ?????????????????????????????????????????????????? | | ?????????????????????????????????????????????????? | | ?????????????????????????????????????????????????? | | ?????????????????????????????????????????????????? | | ?????????????????????????????????????????????????? | | ?????????????????????????????????????????????????? | | ?????????????????????????????????????????????????? | | ?????????????????????????????????????????????????? | | ?????????????????????????????????????????????????? | | ?????????????????????????????????????????????????? | | ?????????????????????????????????????????????????? | | ?????????????????????????????????????????????????? | | | +----------------------------------------------------+ Best States ------------- Heat Dissipation 25 Energy Generation 15 Energy Capacity 250 Matter Stores 300 Matter Capacity 300 Sight Range 16 Terrain Scan Density 10 Evasion (%) 40 Recoil Reduction 2 Item Schematics ----------------- Hcp. Storage Unit | -10/Materials | Hacked Transport Network Coupler | -10/Materials | Hacked Robot Schematics ------------------ M-13 Machinist | -10/Materials | Hacked Fabricated ------------ Nothing Repaired ---------- Lgt. Treads | 40% | -10/Materials Lgt. Treads | 41% | -10/Materials Alien Tech Used ----------------- None Achievements -------------- None Challenges ------------ None Game ------ Seed HellfireLightningWartreads Manual? 0 Play Time 00:39:37 Cumulative 373.6 hours Start 2025.10.20 @ 19:27:40 End 2025.10.20 @ 20:08:42 Sessions 1 Manual Loads 0 Difficulty Rogue Special Mode None Game No. 247 Rogue 247 Adventurer 0 Explorer 0 Win Type - Total 5 Types 3/0/1/0/0/0/0/1/0/0 Lore% 78 Gallery% 79 Achievement% 71 Wizard Run 0 Options --------- Layout 1 ASCII 0 Keyboard 0 Movement Numpad Keybinds 0 Fullscreen 1 Font 24/Smallcaps Map View 50x40 Zoom Use 0% Tactical HUD 1 Map Filters NONE Filters NONE Steam 1 RUN: e1a6d383-6e2a-4ba2-b3b3-e7501c4a703e